[Event "Late-Titled-Tuesday-Blitz-June-25-2024"]
[Site "Chess.com"]
[Date "2024.06.25"]
[Round "10"]
[White "vova-79"]
[Black "Chempiblinka"]
[Result "0-1"]
[WhiteElo "2584"]
[BlackElo "2434"]
[TimeControl "180+1"]
[EndTime "15:55:26 PDT"]
[Termination "Chempiblinka won on time"]

1. d4 {[%clk 0:03:00.9]} 1... Nf6 {[%clk 0:03:00.1]} 2. c4 {[%clk 0:02:59.6]}
2... g6 {[%clk 0:03:00.5]} 3. Nf3 {[%clk 0:02:58.4]} 3... Bg7 {[%clk 0:03:01]}
4. g3 {[%clk 0:02:57.9]} 4... O-O {[%clk 0:03:01.3]} 5. Bg2 {[%clk 0:02:58.3]}
5... d5 {[%clk 0:02:57.6]} 6. cxd5 {[%clk 0:02:59.2]} 6... Nxd5 {[%clk
0:02:57.2]} 7. O-O {[%clk 0:02:59.9]} 7... Nc6 {[%clk 0:02:47.6]} 8. Nc3 {[%clk
0:02:42.8]} 8... Nxc3 {[%clk 0:02:43.7]} 9. bxc3 {[%clk 0:02:40.6]} 9... Bf5
{[%clk 0:02:43.4]} 10. Nd2 {[%clk 0:02:15.9]} 10... Bd7 {[%clk 0:02:39.2]} 11.
e4 {[%clk 0:02:05.8]} 11... Rb8 {[%clk 0:02:38.8]} 12. e5 {[%clk 0:02:05.2]}
12... Na5 {[%clk 0:02:33.2]} 13. f4 {[%clk 0:01:48.2]} 13... e6 {[%clk
0:02:12.6]} 14. a4 {[%clk 0:00:45.5]} 14... Re8 {[%clk 0:02:07.7]} 15. Ne4
{[%clk 0:00:40.6]} 15... Bc6 {[%clk 0:02:02.2]} 16. g4 {[%clk 0:00:31.8]} 16...
Qh4 {[%clk 0:01:28.2]} 17. h3 {[%clk 0:00:28.8]} 17... Qe7 {[%clk 0:01:25.4]}
18. f5 {[%clk 0:00:28.1]} 18... exf5 {[%clk 0:01:18.4]} 19. gxf5 {[%clk
0:00:29]} 19... gxf5 {[%clk 0:01:15.8]} 20. Rxf5 {[%clk 0:00:27.9]} 20... Kh8
{[%clk 0:01:15.9]} 21. Bg5 {[%clk 0:00:26.6]} 21... Qe6 {[%clk 0:01:12.7]} 22.
Qg4 {[%clk 0:00:21.6]} 22... Qg6 {[%clk 0:01:08.5]} 23. Nf6 {[%clk 0:00:19.3]}
23... Bxg2 {[%clk 0:01:02.1]} 24. Kxg2 {[%clk 0:00:18.9]} 24... Re6 {[%clk
0:00:53.2]} 25. Nh5 {[%clk 0:00:18.6]} 25... Nc4 {[%clk 0:00:46.3]} 26. Raf1
{[%clk 0:00:12.7]} 26... h6 {[%clk 0:00:29.5]} 27. Bc1 {[%clk 0:00:11.3]} 27...
Rg8 {[%clk 0:00:20.5]} 28. Rxf7 {[%clk 0:00:08.9]} 28... Qxg4+ {[%clk
0:00:20.3]} 29. hxg4 {[%clk 0:00:08.8]} 29... Bf8 {[%clk 0:00:18.7]} 30. Kh3
{[%clk 0:00:08.8]} 30... Bg7 {[%clk 0:00:18.5]} 31. Nxg7 {[%clk 0:00:06]} 31...
Rxg7 {[%clk 0:00:19.4]} 32. Rxg7 {[%clk 0:00:04.9]} 32... Kxg7 {[%clk
0:00:19.3]} 33. Kh4 {[%clk 0:00:04.9]} 33... Kg6 {[%clk 0:00:19.4]} 34. Rf8
{[%clk 0:00:02.9]} 34... Nb6 {[%clk 0:00:19.6]} 35. Rg8+ {[%clk 0:00:02]} 35...
Kf7 {[%clk 0:00:19.2]} 36. Rh8 {[%clk 0:00:01.9]} 36... Nxa4 {[%clk 0:00:19.4]}
37. Rxh6 {[%clk 0:00:01]} 37... Rxh6+ {[%clk 0:00:19.5]} 38. Bxh6 {[%clk
0:00:01.1]} 38... Nxc3 {[%clk 0:00:20.4]} 39. Kg3 {[%clk 0:00:01.3]} 39... a5
{[%clk 0:00:20]} 0-1

[Event "Late-Titled-Tuesday-Blitz-June-25-2024"]
[Site "Chess.com"]
[Date "2024.06.25"]
[Round "10"]
[White "chessdoll90"]
[Black "talaicito"]
[Result "1-0"]
[WhiteElo "2499"]
[BlackElo "2375"]
[TimeControl "180+1"]
[EndTime "15:55:27 PDT"]
[Termination "chessdoll90 won on time"]

1. c4 {[%clk 0:03:00.9]} 1... e5 {[%clk 0:02:59.2]} 2. g3 {[%clk 0:03:00.6]}
2... d6 {[%clk 0:02:59.5]} 3. Bg2 {[%clk 0:03:00.8]} 3... f5 {[%clk 0:03:00.2]}
4. Nc3 {[%clk 0:03:01]} 4... Nf6 {[%clk 0:03:00.8]} 5. d4 {[%clk 0:02:58.7]}
5... e4 {[%clk 0:02:59.7]} 6. Nh3 {[%clk 0:02:58.4]} 6... c6 {[%clk 0:02:59.3]}
7. O-O {[%clk 0:02:57]} 7... Be7 {[%clk 0:02:59.1]} 8. f3 {[%clk 0:02:53.5]}
8... exf3 {[%clk 0:02:56.6]} 9. exf3 {[%clk 0:02:51.6]} 9... O-O {[%clk
0:02:56.6]} 10. Be3 {[%clk 0:02:45.9]} 10... Nbd7 {[%clk 0:02:43]} 11. Qd2
{[%clk 0:02:44.8]} 11... Nb6 {[%clk 0:02:41.3]} 12. b3 {[%clk 0:02:44.7]} 12...
a5 {[%clk 0:02:40.4]} 13. Rae1 {[%clk 0:02:44.4]} 13... a4 {[%clk 0:02:38.4]}
14. d5 {[%clk 0:02:32.8]} 14... cxd5 {[%clk 0:02:24.4]} 15. cxd5 {[%clk
0:02:28.9]} 15... axb3 {[%clk 0:02:22]} 16. axb3 {[%clk 0:02:24.1]} 16... Ra3
{[%clk 0:01:59.9]} 17. Qb2 {[%clk 0:02:19.3]} 17... Ra5 {[%clk 0:01:50]} 18. b4
{[%clk 0:01:55.3]} 18... Nc4 {[%clk 0:01:49.2]} 19. Qe2 {[%clk 0:01:51.8]} 19...
Nxe3 {[%clk 0:01:47.6]} 20. Qxe3 {[%clk 0:01:52.7]} 20... Ra3 {[%clk 0:01:44.3]}
21. Qc1 {[%clk 0:01:30.7]} 21... Rb3 {[%clk 0:01:39.2]} 22. b5 {[%clk
0:01:23.9]} 22... Qb6+ {[%clk 0:01:16.9]} 23. Kh1 {[%clk 0:01:23]} 23... Bd8
{[%clk 0:01:16.8]} 24. Nf4 {[%clk 0:01:12]} 24... Qc7 {[%clk 0:01:07.9]} 25. Na4
{[%clk 0:01:06]} 25... Rxb5 {[%clk 0:01:02.8]} 26. Qxc7 {[%clk 0:00:25.3]} 26...
Bxc7 {[%clk 0:01:01.7]} 27. Rb1 {[%clk 0:00:26]} 27... Bd7 {[%clk 0:00:48]} 28.
Nc3 {[%clk 0:00:23.7]} 28... Rc5 {[%clk 0:00:38.7]} 29. Rfc1 {[%clk 0:00:23.2]}
29... b5 {[%clk 0:00:30.6]} 30. Nd3 {[%clk 0:00:21.2]} 30... Rc4 {[%clk
0:00:24]} 31. Bf1 {[%clk 0:00:20.2]} 31... Ba5 {[%clk 0:00:13.3]} 32. Nxb5
{[%clk 0:00:16.3]} 32... Rxc1 {[%clk 0:00:10.2]} 33. Nxc1 {[%clk 0:00:17.2]}
33... Nxd5 {[%clk 0:00:09]} 34. Bc4 {[%clk 0:00:16.7]} 34... Be6 {[%clk
0:00:07.7]} 35. Nxd6 {[%clk 0:00:14.8]} 35... Kh8 {[%clk 0:00:04.6]} 36. Nd3
{[%clk 0:00:10.6]} 36... Nc3 {[%clk 0:00:02.3]} 37. Rb7 {[%clk 0:00:10.1]} 1-0

[Event "Late-Titled-Tuesday-Blitz-June-25-2024"]
[Site "Chess.com"]
[Date "2024.06.25"]
[Round "10"]
[White "Nf3c5"]
[Black "Chessmissile07"]
[Result "1-0"]
[WhiteElo "2659"]
[BlackElo "2808"]
[TimeControl "180+1"]
[EndTime "15:55:30 PDT"]
[Termination "Nf3c5 won by resignation"]

1. Nf3 {[%clk 0:02:59.9]} 1... a6 {[%clk 0:03:00.9]} 2. e4 {[%clk 0:02:53.1]}
2... c5 {[%clk 0:02:51.2]} 3. c4 {[%clk 0:02:52.8]} 3... Nc6 {[%clk 0:02:51.1]}
4. d4 {[%clk 0:02:51.4]} 4... cxd4 {[%clk 0:02:50.2]} 5. Nxd4 {[%clk 0:02:52.1]}
5... Nf6 {[%clk 0:02:49.7]} 6. Nc3 {[%clk 0:02:51.1]} 6... e5 {[%clk 0:02:49.7]}
7. Nf5 {[%clk 0:02:39.2]} 7... d5 {[%clk 0:02:46.1]} 8. cxd5 {[%clk 0:02:33.4]}
8... Bxf5 {[%clk 0:02:44.7]} 9. exf5 {[%clk 0:02:31.6]} 9... Nd4 {[%clk
0:02:44.7]} 10. Bg5 {[%clk 0:02:23]} 10... Qb6 {[%clk 0:02:07]} 11. Rb1 {[%clk
0:02:09]} 11... Bb4 {[%clk 0:01:51.6]} 12. Bd3 {[%clk 0:01:53.9]} 12... Nxd5
{[%clk 0:01:37]} 13. O-O {[%clk 0:01:48.8]} 13... Nf6 {[%clk 0:01:24.9]} 14.
Bxf6 {[%clk 0:01:44.3]} 14... Qxf6 {[%clk 0:01:11.2]} 15. Qa4+ {[%clk
0:01:29.8]} 15... Nc6 {[%clk 0:01:09.6]} 16. Nd5 {[%clk 0:01:26.8]} 16... Qd6
{[%clk 0:01:09]} 17. Be4 {[%clk 0:01:02.5]} 17... O-O {[%clk 0:01:07.8]} 18.
Rbd1 {[%clk 0:01:02.4]} 18... b5 {[%clk 0:01:05.5]} 19. Qc2 {[%clk 0:00:58]}
19... Nd4 {[%clk 0:01:01.4]} 20. Qd3 {[%clk 0:00:55.2]} 20... Rad8 {[%clk
0:00:36.3]} 21. f6 {[%clk 0:00:51.2]} 21... gxf6 {[%clk 0:00:35.2]} 22. Qg3+
{[%clk 0:00:42.6]} 22... Kh8 {[%clk 0:00:33.1]} 23. Qh4 {[%clk 0:00:43.2]} 23...
f5 {[%clk 0:00:31.1]} 24. Nf6 {[%clk 0:00:43.7]} 24... Kg7 {[%clk 0:00:19]} 25.
Qg5+ {[%clk 0:00:44]} 25... Kh8 {[%clk 0:00:19.4]} 26. Qh6 {[%clk 0:00:44.7]}
26... Qxf6 {[%clk 0:00:16.3]} 27. Qxf6+ {[%clk 0:00:45.2]} 27... Kg8 {[%clk
0:00:16.9]} 28. Bxf5 {[%clk 0:00:42]} 28... Rd6 {[%clk 0:00:16.6]} 29. Qg5+
{[%clk 0:00:39.4]} 29... Kh8 {[%clk 0:00:16.4]} 30. Qh5 {[%clk 0:00:25.8]} 30...
h6 {[%clk 0:00:14.6]} 31. Kh1 {[%clk 0:00:23]} 31... Kg7 {[%clk 0:00:07.8]} 32.
Be4 {[%clk 0:00:23]} 32... f5 {[%clk 0:00:05.4]} 33. Bb1 {[%clk 0:00:20.7]}
33... Bc5 {[%clk 0:00:05.3]} 34. g4 {[%clk 0:00:19.1]} 34... f4 {[%clk
0:00:04.1]} 35. g5 {[%clk 0:00:19.6]} 35... Rh8 {[%clk 0:00:02.5]} 36. Rg1
{[%clk 0:00:19.3]} 36... Kf8 {[%clk 0:00:02.7]} 37. g6 {[%clk 0:00:15.9]} 37...
Kg7 {[%clk 0:00:02.9]} 38. Qxe5+ {[%clk 0:00:16.4]} 38... Rf6 {[%clk 0:00:03.6]}
39. Qxc5 {[%clk 0:00:16.5]} 39... Ne6 {[%clk 0:00:04.3]} 40. Rd7+ {[%clk
0:00:16.3]} 1-0

[Event "Late-Titled-Tuesday-Blitz-June-25-2024"]
[Site "Chess.com"]
[Date "2024.06.25"]
[Round "10"]
[White "ACollins05"]
[Black "GrotBchess"]
[Result "1-0"]
[WhiteElo "2440"]
[BlackElo "2569"]
[TimeControl "180+1"]
[EndTime "15:55:31 PDT"]
[Termination "ACollins05 won by checkmate"]

1. d4 {[%clk 0:03:00.9]} 1... Nf6 {[%clk 0:02:59.2]} 2. c4 {[%clk 0:03:00.1]}
2... g6 {[%clk 0:02:59.7]} 3. Nc3 {[%clk 0:02:59.8]} 3... Bg7 {[%clk 0:02:59.9]}
4. e4 {[%clk 0:03:00.4]} 4... d6 {[%clk 0:03:00.4]} 5. h3 {[%clk 0:03:00.8]}
5... e5 {[%clk 0:02:58.4]} 6. Nf3 {[%clk 0:02:54.7]} 6... O-O {[%clk 0:02:57.7]}
7. Bg5 {[%clk 0:02:53.2]} 7... exd4 {[%clk 0:02:51.5]} 8. Qxd4 {[%clk
0:02:51.1]} 8... Nc6 {[%clk 0:02:47.8]} 9. Qd2 {[%clk 0:02:48]} 9... Qe8 {[%clk
0:02:46.6]} 10. Bd3 {[%clk 0:02:45.7]} 10... Nxe4 {[%clk 0:02:41.8]} 11. Nxe4
{[%clk 0:02:39]} 11... f5 {[%clk 0:02:41.2]} 12. O-O {[%clk 0:02:37.3]} 12...
fxe4 {[%clk 0:02:41]} 13. Rae1 {[%clk 0:02:37.8]} 13... Bf5 {[%clk 0:02:33.6]}
14. Nh4 {[%clk 0:02:37.7]} 14... Ne5 {[%clk 0:02:06.5]} 15. Bxe4 {[%clk
0:02:36]} 15... Bxe4 {[%clk 0:02:06.5]} 16. Rxe4 {[%clk 0:02:35]} 16... Qc6
{[%clk 0:02:07]} 17. Qd5+ {[%clk 0:02:29.5]} 17... Qxd5 {[%clk 0:02:05.3]} 18.
cxd5 {[%clk 0:02:30.4]} 18... h6 {[%clk 0:02:03.5]} 19. Bd2 {[%clk 0:02:24.9]}
19... g5 {[%clk 0:02:02.7]} 20. f4 {[%clk 0:02:12.3]} 20... gxh4 {[%clk
0:01:47.4]} 21. fxe5 {[%clk 0:02:11.3]} 21... Bxe5 {[%clk 0:01:43.5]} 22. Rxf8+
{[%clk 0:02:08.2]} 22... Rxf8 {[%clk 0:01:44.4]} 23. Bxh6 {[%clk 0:02:05.6]}
23... Rf5 {[%clk 0:01:42]} 24. Rxh4 {[%clk 0:01:58]} 24... Bxb2 {[%clk
0:01:38.5]} 25. Rb4 {[%clk 0:01:49.1]} 25... Ba3 {[%clk 0:01:32.8]} 26. Rxb7
{[%clk 0:01:44.6]} 26... Bc5+ {[%clk 0:01:32.7]} 27. Kh2 {[%clk 0:01:45.1]}
27... Bb6 {[%clk 0:01:31.5]} 28. Rb8+ {[%clk 0:01:36.9]} 28... Kh7 {[%clk
0:01:30.2]} 29. Bc1 {[%clk 0:01:25.3]} 29... Rxd5 {[%clk 0:01:29.4]} 30. Re8
{[%clk 0:01:21.9]} 30... Rd1 {[%clk 0:01:21.7]} 31. Be3 {[%clk 0:01:14.7]} 31...
Re1 {[%clk 0:01:18.1]} 32. Re7+ {[%clk 0:01:14.9]} 32... Kg6 {[%clk 0:01:17.6]}
33. Bg5 {[%clk 0:01:12.7]} 33... Ra1 {[%clk 0:00:55.3]} 34. Be3 {[%clk
0:01:11.3]} 34... Bxe3 {[%clk 0:00:49.9]} 35. Rxe3 {[%clk 0:01:12.2]} 35... Rxa2
{[%clk 0:00:49.9]} 36. h4 {[%clk 0:01:09.3]} 36... d5 {[%clk 0:00:47.3]} 37. Kh3
{[%clk 0:01:08.8]} 37... d4 {[%clk 0:00:46.4]} 38. Re7 {[%clk 0:01:08]} 38... c5
{[%clk 0:00:45.9]} 39. g4 {[%clk 0:01:08.1]} 39... d3 {[%clk 0:00:43.8]} 40. Rd7
{[%clk 0:01:05.2]} 40... d2 {[%clk 0:00:43.5]} 41. h5+ {[%clk 0:01:05.5]} 41...
Kg5 {[%clk 0:00:39.1]} 42. Rd5+ {[%clk 0:01:05.5]} 42... Kf6 {[%clk 0:00:37.3]}
43. h6 {[%clk 0:01:04.5]} 43... c4 {[%clk 0:00:34.4]} 44. g5+ {[%clk 0:01:00.8]}
44... Kg6 {[%clk 0:00:32.5]} 45. Rd6+ {[%clk 0:01:01.2]} 45... Kh7 {[%clk
0:00:19.1]} 46. Rd7+ {[%clk 0:01:01.1]} 46... Kh8 {[%clk 0:00:18.6]} 47. Kg4
{[%clk 0:00:43.8]} 47... c3 {[%clk 0:00:13.8]} 48. g6 {[%clk 0:00:42.3]} 48...
Ra4+ {[%clk 0:00:08.5]} 49. Kg3 {[%clk 0:00:38.4]} 49... d1=Q {[%clk 0:00:01.8]}
50. Rxd1 {[%clk 0:00:37.7]} 50... Rd4 {[%clk 0:00:01.5]} 51. Rxd4 {[%clk
0:00:37.6]} 51... c2 {[%clk 0:00:02.4]} 52. Rd8# {[%clk 0:00:37.3]} 1-0

[Event "Late-Titled-Tuesday-Blitz-June-25-2024"]
[Site "Chess.com"]
[Date "2024.06.25"]
[Round "10"]
[White "AlexanderMatlak"]
[Black "IsaacWiebe"]
[Result "0-1"]
[WhiteElo "2448"]
[BlackElo "2388"]
[TimeControl "180+1"]
[EndTime "15:55:34 PDT"]
[Termination "IsaacWiebe won by checkmate"]

1. c4 {[%clk 0:03:00.9]} 1... e5 {[%clk 0:02:59.2]} 2. Nc3 {[%clk 0:02:59.8]}
2... Nf6 {[%clk 0:02:59.4]} 3. Nf3 {[%clk 0:03:00]} 3... Nc6 {[%clk 0:02:59.7]}
4. g3 {[%clk 0:03:00.4]} 4... d5 {[%clk 0:03:00]} 5. cxd5 {[%clk 0:03:00.3]}
5... Nxd5 {[%clk 0:03:00.9]} 6. Bg2 {[%clk 0:03:00.8]} 6... Nb6 {[%clk
0:03:01.4]} 7. O-O {[%clk 0:03:00.4]} 7... Be7 {[%clk 0:03:02.3]} 8. a3 {[%clk
0:03:00.9]} 8... O-O {[%clk 0:03:00.5]} 9. b4 {[%clk 0:03:01.1]} 9... Be6 {[%clk
0:02:55.9]} 10. d3 {[%clk 0:03:01.4]} 10... f6 {[%clk 0:02:53.9]} 11. Bb2 {[%clk
0:03:01.4]} 11... a5 {[%clk 0:02:52]} 12. b5 {[%clk 0:03:01.1]} 12... Nd4 {[%clk
0:02:37.5]} 13. Nd2 {[%clk 0:03:01.1]} 13... Rb8 {[%clk 0:02:32.8]} 14. e3
{[%clk 0:02:55.3]} 14... Nf5 {[%clk 0:02:31.8]} 15. Qe2 {[%clk 0:02:55.6]} 15...
a4 {[%clk 0:02:29.7]} 16. Nc4 {[%clk 0:02:45.2]} 16... Nxc4 {[%clk 0:02:22.9]}
17. dxc4 {[%clk 0:02:46.1]} 17... Nd6 {[%clk 0:02:17.7]} 18. Nd5 {[%clk
0:02:31.5]} 18... c6 {[%clk 0:02:08.8]} 19. Nxe7+ {[%clk 0:02:27.6]} 19... Qxe7
{[%clk 0:02:09.1]} 20. Rac1 {[%clk 0:02:22.5]} 20... cxb5 {[%clk 0:02:06.4]} 21.
cxb5 {[%clk 0:02:23.4]} 21... Rbc8 {[%clk 0:02:04.4]} 22. b6 {[%clk 0:02:10.5]}
22... Bc4 {[%clk 0:02:02.1]} 23. Rxc4 {[%clk 0:02:06.2]} 23... Nxc4 {[%clk
0:01:59]} 24. Bd5+ {[%clk 0:02:06.1]} 24... Kh8 {[%clk 0:01:58.9]} 25. Bxc4
{[%clk 0:02:07]} 25... Qc5 {[%clk 0:01:58.9]} 26. Bd3 {[%clk 0:01:56.4]} 26...
g6 {[%clk 0:01:37.4]} 27. f4 {[%clk 0:01:52]} 27... exf4 {[%clk 0:01:24.9]} 28.
Rxf4 {[%clk 0:01:45.2]} 28... Rc6 {[%clk 0:01:12.7]} 29. Qf2 {[%clk 0:01:17.1]}
29... Kg7 {[%clk 0:01:02.4]} 30. g4 {[%clk 0:01:14.2]} 30... Rxb6 {[%clk
0:00:58.9]} 31. Bd4 {[%clk 0:01:05.4]} 31... Qc1+ {[%clk 0:00:57.9]} 32. Kg2
{[%clk 0:01:05.9]} 32... Rd6 {[%clk 0:00:40.7]} 33. g5 {[%clk 0:01:04.3]} 33...
Rxd4 {[%clk 0:00:40.8]} 34. Rxd4 {[%clk 0:00:56.5]} 34... fxg5 {[%clk
0:00:21.8]} 35. Rd7+ {[%clk 0:00:56.2]} 35... Kg8 {[%clk 0:00:21.7]} 36. Qa2+
{[%clk 0:00:45.7]} 36... Kh8 {[%clk 0:00:18.6]} 37. Qe6 {[%clk 0:00:17.6]} 37...
Qd2+ {[%clk 0:00:17.4]} 38. Kg3 {[%clk 0:00:11.2]} 38... Qf2+ {[%clk 0:00:17.1]}
39. Kg4 {[%clk 0:00:03.8]} 39... Qh4# {[%clk 0:00:17.3]} 0-1

[Event "Late-Titled-Tuesday-Blitz-June-25-2024"]
[Site "Chess.com"]
[Date "2024.06.25"]
[Round "10"]
[White "Arystanner"]
[Black "Maus7"]
[Result "1-0"]
[WhiteElo "2840"]
[BlackElo "2667"]
[TimeControl "180+1"]
[EndTime "15:55:36 PDT"]
[Termination "Arystanner won by resignation"]

1. e4 {[%clk 0:03:00.9]} 1... c5 {[%clk 0:02:59.4]} 2. Nf3 {[%clk 0:03:01.4]}
2... d6 {[%clk 0:02:59.8]} 3. Bb5+ {[%clk 0:03:01.7]} 3... Bd7 {[%clk
0:02:58.1]} 4. Bxd7+ {[%clk 0:03:01.3]} 4... Nxd7 {[%clk 0:02:58.1]} 5. c3
{[%clk 0:02:57.7]} 5... Ngf6 {[%clk 0:02:47.2]} 6. Qe2 {[%clk 0:02:57.6]} 6...
e6 {[%clk 0:02:38]} 7. d4 {[%clk 0:02:57.7]} 7... cxd4 {[%clk 0:02:29.2]} 8.
cxd4 {[%clk 0:02:58.6]} 8... d5 {[%clk 0:02:29.7]} 9. e5 {[%clk 0:02:58.9]} 9...
Ne4 {[%clk 0:02:29.6]} 10. O-O {[%clk 0:02:53.7]} 10... Be7 {[%clk 0:02:26.6]}
11. Rd1 {[%clk 0:02:52.1]} 11... O-O {[%clk 0:02:16.9]} 12. Ne1 {[%clk
0:02:52.5]} 12... h6 {[%clk 0:02:06.8]} 13. f3 {[%clk 0:02:52.6]} 13... Ng5
{[%clk 0:02:06.4]} 14. Nc3 {[%clk 0:02:52.9]} 14... Rc8 {[%clk 0:02:05]} 15. f4
{[%clk 0:02:52.5]} 15... Ne4 {[%clk 0:01:40.4]} 16. Nxe4 {[%clk 0:02:52.8]}
16... dxe4 {[%clk 0:01:41.3]} 17. Qxe4 {[%clk 0:02:53.5]} 17... Qb6 {[%clk
0:01:40]} 18. Qe2 {[%clk 0:02:49.4]} 18... Qc6 {[%clk 0:01:25.1]} 19. Bd2 {[%clk
0:02:40]} 19... Nb6 {[%clk 0:01:24.6]} 20. Qf3 {[%clk 0:02:31.2]} 20... Qd7
{[%clk 0:01:18.7]} 21. Be3 {[%clk 0:02:25.9]} 21... Nd5 {[%clk 0:01:16.9]} 22.
Rac1 {[%clk 0:02:26]} 22... Qa4 {[%clk 0:01:11.4]} 23. a3 {[%clk 0:02:17.5]}
23... Qb3 {[%clk 0:01:03.8]} 24. Rxc8 {[%clk 0:02:15.3]} 24... Rxc8 {[%clk
0:01:02.3]} 25. Rc1 {[%clk 0:02:16]} 25... Rd8 {[%clk 0:00:40.5]} 26. Bf2 {[%clk
0:02:16.3]} 26... Qxb2 {[%clk 0:00:38.8]} 27. Rc4 {[%clk 0:02:15.1]} 27... Qa1
{[%clk 0:00:32.9]} 28. g3 {[%clk 0:02:07.5]} 28... Bxa3 {[%clk 0:00:27.8]} 29.
Ra4 {[%clk 0:02:03]} 29... Nc3 {[%clk 0:00:26]} 30. Rxa7 {[%clk 0:02:02.7]}
30... Qc1 {[%clk 0:00:19.2]} 31. Kg2 {[%clk 0:01:54.3]} 31... Nd5 {[%clk
0:00:18]} 32. Rxb7 {[%clk 0:01:50]} 32... Qc6 {[%clk 0:00:17.4]} 33. Rb3 {[%clk
0:01:41]} 33... Bf8 {[%clk 0:00:15.7]} 34. Nd3 {[%clk 0:01:41.6]} 34... Ra8
{[%clk 0:00:15.8]} 35. f5 {[%clk 0:01:32.4]} 35... exf5 {[%clk 0:00:15.6]} 36.
Nf4 {[%clk 0:01:33.1]} 36... Rd8 {[%clk 0:00:15.3]} 37. Nxd5 {[%clk 0:01:29.9]}
37... Qxd5 {[%clk 0:00:15.7]} 38. Qxd5 {[%clk 0:01:30]} 38... Rxd5 {[%clk
0:00:16.6]} 39. Rb8 {[%clk 0:01:30.4]} 39... g6 {[%clk 0:00:16.6]} 40. Kf3
{[%clk 0:01:31]} 40... Kg7 {[%clk 0:00:17]} 41. g4 {[%clk 0:01:31.4]} 41... Be7
{[%clk 0:00:14.7]} 42. gxf5 {[%clk 0:01:30.8]} 42... gxf5 {[%clk 0:00:15]} 43.
h4 {[%clk 0:01:25.2]} 43... f6 {[%clk 0:00:15.2]} 44. Rb7 {[%clk 0:01:25.3]}
44... Kf7 {[%clk 0:00:15.1]} 45. Kf4 {[%clk 0:01:25.3]} 45... fxe5+ {[%clk
0:00:14.6]} 46. dxe5 {[%clk 0:01:26.2]} 46... Ke6 {[%clk 0:00:14]} 47. Rb6+
{[%clk 0:01:25.8]} 47... Kf7 {[%clk 0:00:14.1]} 48. Kxf5 {[%clk 0:01:23.4]}
48... Bf8 {[%clk 0:00:14]} 49. Rb7+ {[%clk 0:01:22.8]} 49... Kg8 {[%clk
0:00:13.6]} 50. h5 {[%clk 0:01:18.6]} 50... Ra5 {[%clk 0:00:12.8]} 51. Bg3
{[%clk 0:01:17.4]} 51... Rc5 {[%clk 0:00:12]} 52. Kf6 {[%clk 0:01:13]} 52... Rc3
{[%clk 0:00:12.2]} 53. Bf4 {[%clk 0:01:12.4]} 53... Rf3 {[%clk 0:00:12.5]} 54.
Kf5 {[%clk 0:01:13]} 54... Rf1 {[%clk 0:00:12.6]} 55. Rd7 {[%clk 0:01:11.3]}
55... Rf2 {[%clk 0:00:12.4]} 56. e6 {[%clk 0:01:11.2]} 56... Re2 {[%clk
0:00:12.6]} 57. Be5 {[%clk 0:01:09.6]} 57... Rf2+ {[%clk 0:00:12]} 58. Ke4
{[%clk 0:01:09.9]} 58... Re2+ {[%clk 0:00:12.5]} 59. Kd5 {[%clk 0:01:09.5]}
59... Rd2+ {[%clk 0:00:12.6]} 60. Kc4 {[%clk 0:01:09.4]} 60... Re2 {[%clk
0:00:12.6]} 61. Kd5 {[%clk 0:01:05.4]} 61... Rd2+ {[%clk 0:00:12.8]} 62. Bd4
{[%clk 0:01:06.2]} 62... Re2 {[%clk 0:00:12.4]} 63. Rd8 {[%clk 0:01:03.1]} 63...
Re1 {[%clk 0:00:11.7]} 64. Kc4 {[%clk 0:01:02.3]} 64... Rc1+ {[%clk 0:00:11.2]}
65. Kb3 {[%clk 0:01:01.9]} 65... Rb1+ {[%clk 0:00:10.3]} 66. Kc2 {[%clk
0:01:01.3]} 66... Rb5 {[%clk 0:00:07]} 67. e7 {[%clk 0:01:00.8]} 1-0

[Event "Late-Titled-Tuesday-Blitz-June-25-2024"]
[Site "Chess.com"]
[Date "2024.06.25"]
[Round "10"]
[White "legendisback1"]
[Black "KaydenTroffChess"]
[Result "1-0"]
[WhiteElo "3025"]
[BlackElo "2814"]
[TimeControl "180+1"]
[EndTime "15:55:38 PDT"]
[Termination "legendisback1 won by resignation"]

1. e4 {[%clk 0:02:56.4]} 1... c5 {[%clk 0:02:59.7]} 2. Nc3 {[%clk 0:02:56.6]}
2... g6 {[%clk 0:03:00.2]} 3. f4 {[%clk 0:02:53.4]} 3... Bg7 {[%clk 0:03:00]} 4.
Nf3 {[%clk 0:02:54.3]} 4... Nc6 {[%clk 0:03:00.2]} 5. Bc4 {[%clk 0:02:52.3]}
5... e6 {[%clk 0:02:59.9]} 6. f5 {[%clk 0:02:51.2]} 6... gxf5 {[%clk 0:02:46.7]}
7. exf5 {[%clk 0:02:43.7]} 7... d5 {[%clk 0:02:46.8]} 8. Bb5 {[%clk 0:02:43.6]}
8... e5 {[%clk 0:02:20.5]} 9. O-O {[%clk 0:02:08.5]} 9... Ne7 {[%clk 0:01:59.3]}
10. Ng5 {[%clk 0:02:01.5]} 10... Bxf5 {[%clk 0:01:51.1]} 11. Qf3 {[%clk
0:00:43.7]} 11... h6 {[%clk 0:01:00.7]} 12. Nxf7 {[%clk 0:00:31.7]} 12... Kxf7
{[%clk 0:01:00.8]} 13. Bxc6 {[%clk 0:00:17.4]} 13... bxc6 {[%clk 0:01:01.7]} 14.
g4 {[%clk 0:00:18]} 14... e4 {[%clk 0:01:00.8]} 15. Qh3 {[%clk 0:00:18.1]} 15...
Rg8 {[%clk 0:00:40.5]} 16. Kh1 {[%clk 0:00:17.1]} 16... Qd6 {[%clk 0:00:21.6]}
17. gxf5 {[%clk 0:00:17.1]} 17... Qf6 {[%clk 0:00:20.7]} 18. d3 {[%clk
0:00:14.5]} 18... exd3 {[%clk 0:00:20.6]} 19. cxd3 {[%clk 0:00:15.4]} 19... Rab8
{[%clk 0:00:20.3]} 20. Na4 {[%clk 0:00:07.1]} 20... Rb5 {[%clk 0:00:13.8]} 21.
Be3 {[%clk 0:00:05.6]} 21... d4 {[%clk 0:00:09.6]} 22. Bf2 {[%clk 0:00:03.8]}
22... Kf8 {[%clk 0:00:08]} 23. Rae1 {[%clk 0:00:02.3]} 23... Qd6 {[%clk
0:00:06.6]} 24. Bh4 {[%clk 0:00:02.1]} 24... Qd5+ {[%clk 0:00:07]} 25. Qf3
{[%clk 0:00:01.8]} 25... Qxf3+ {[%clk 0:00:06.5]} 26. Rxf3 {[%clk 0:00:02.7]}
26... Nd5 {[%clk 0:00:06.5]} 27. f6 {[%clk 0:00:03.4]} 27... Bh8 {[%clk
0:00:06.8]} 28. f7 {[%clk 0:00:04.1]} 28... Ne3 {[%clk 0:00:04.1]} 29. fxg8=Q+
{[%clk 0:00:03.9]} 29... Kxg8 {[%clk 0:00:05]} 30. Rg1+ {[%clk 0:00:04.6]} 30...
Bg7 {[%clk 0:00:04.4]} 31. Bf6 {[%clk 0:00:05]} 31... Kf7 {[%clk 0:00:04.4]} 32.
Bxd4+ {[%clk 0:00:04.7]} 32... Ke6 {[%clk 0:00:05.3]} 33. Rxe3+ {[%clk
0:00:05.2]} 33... Kd5 {[%clk 0:00:05.6]} 34. Bxg7 {[%clk 0:00:05.4]} 34... c4
{[%clk 0:00:06]} 35. Nc3+ {[%clk 0:00:05.8]} 35... Kc5 {[%clk 0:00:06.2]} 36.
d4+ {[%clk 0:00:06.2]} 36... Kb4 {[%clk 0:00:06.3]} 37. Nxb5 {[%clk 0:00:07.1]}
37... a5 {[%clk 0:00:06.3]} 38. Nc3 {[%clk 0:00:06.8]} 38... a4 {[%clk
0:00:06.4]} 39. Re5 {[%clk 0:00:06.9]} 39... h5 {[%clk 0:00:05.4]} 40. Bf8+
{[%clk 0:00:07.4]} 40... c5 {[%clk 0:00:03.9]} 41. Rxc5 {[%clk 0:00:07.9]} 1-0